[Event "Titled Tuesday Blitz April 26 Late 2022"]
[White "Pasti, Aron"]
[Black "Karttunen, Mika"]
[WhiteFideId "785857"]
[BlackFideId "502081"]
[WhiteElo "2133"]
[BlackElo "2343"]
[Result "0-1"]
[Round "04"]
[TimeControl "180+1"]
[Date "2022.04.26"]
[WhiteClock "0:01:14"]
[BlackClock "0:00:34"]

1. e4 {[%clk 0:03:00]}  Nf6 {[%clk 0:02:59]} 2. e5 {[%clk 0:03:00]}  Nd5 {[%clk 0:02:59]} 3. d4 {[%clk 0:03:01]}  d6 {[%clk 0:02:58]} 4. c4 {[%clk 0:03:02]}  Nb6 {[%clk 0:02:58]} 5. f4 {[%clk 0:03:03]}  dxe5 {[%clk 0:02:57]} 6. fxe5 {[%clk 0:03:02]}  Bf5 {[%clk 0:02:58]} 7. Nc3 {[%clk 0:03:00]}  e6 {[%clk 0:02:58]} 8. Be3 {[%clk 0:02:58]}  Nc6 {[%clk 0:02:57]} 9. Be2 {[%clk 0:02:56]}  Be7 {[%clk 0:02:57]} 10. Nf3 {[%clk 0:02:56]}  O-O {[%clk 0:02:57]} 11. O-O {[%clk 0:02:56]}  f6 {[%clk 0:02:57]} 12. exf6 {[%clk 0:02:55]}  Bxf6 {[%clk 0:02:58]} 13. h3 {[%clk 0:02:53]}  Qe7 {[%clk 0:02:30]} 14. Qe1 {[%clk 0:02:45]}  Rad8 {[%clk 0:02:26]} 15. Rd1 {[%clk 0:02:45]}  Nb4 {[%clk 0:02:17]} 16. Rd2 {[%clk 0:02:40]}  Nc2 {[%clk 0:02:17]} 17. Qf2 {[%clk 0:02:29]}  Nxe3 {[%clk 0:02:17]} 18. Qxe3 {[%clk 0:02:30]}  Rfe8 {[%clk 0:02:11]} 19. g4 {[%clk 0:02:30]}  Qd6 {[%clk 0:01:53]} 20. gxf5 {[%clk 0:02:12]}  Qg3+ {[%clk 0:01:52]} 21. Kh1 {[%clk 0:02:12]}  Qxh3+ {[%clk 0:01:52]} 22. Kg1 {[%clk 0:02:12]}  Qg3+ {[%clk 0:01:15]} 23. Kh1 {[%clk 0:02:11]}  Qh3+ {[%clk 0:01:15]} 24. Kg1 {[%clk 0:02:11]}  exf5 {[%clk 0:01:03]} 25. Qf2 {[%clk 0:02:08]}  Re4 {[%clk 0:00:56]} 26. Nxe4 {[%clk 0:01:59]}  fxe4 {[%clk 0:00:56]} 27. d5 {[%clk 0:01:32]}  exf3 {[%clk 0:00:54]} 28. Qxf3 {[%clk 0:01:33]}  Qh4 {[%clk 0:00:42]} 29. Qf2 {[%clk 0:01:23]}  Qg5+ {[%clk 0:00:41]} 30. Bg4 {[%clk 0:01:21]}  Qxg4+ {[%clk 0:00:41]} 31. Kh1 {[%clk 0:01:21]}  Nxc4 {[%clk 0:00:37]} 32. Rd3 {[%clk 0:01:21]}  Ne5 {[%clk 0:00:35]} 33. Rg3 {[%clk 0:01:20]}  Qe4+ {[%clk 0:00:34]} 34. Kg1 {[%clk 0:01:14]}  Ng6 {[%clk 0:00:34]} 0-1


[Site "https://www.chess.com"]

[Event "Titled Tuesday Blitz April 26 Late 2022"]
[White "Petrovic, Aleksa"]
[Black "Salimova, Nurgyul"]
[WhiteFideId "967629"]
[BlackFideId "2915138"]
[WhiteElo "2198"]
[BlackElo "2185"]
[Result "0-1"]
[Round "04"]
[TimeControl "180+1"]
[Date "2022.04.26"]
[WhiteClock "0:00:03"]
[BlackClock "0:00:08"]

1. d4 {[%clk 0:03:00]}  Nf6 {[%clk 0:02:59]} 2. c4 {[%clk 0:03:00]}  e6 {[%clk 0:02:58]} 3. Nf3 {[%clk 0:03:00]}  d5 {[%clk 0:02:58]} 4. Nc3 {[%clk 0:02:59]}  c6 {[%clk 0:02:56]} 5. e3 {[%clk 0:02:53]}  Nbd7 {[%clk 0:02:56]} 6. Qc2 {[%clk 0:02:53]}  Bd6 {[%clk 0:02:55]} 7. Bd3 {[%clk 0:02:53]}  b6 {[%clk 0:02:54]} 8. b3 {[%clk 0:02:47]}  Bb7 {[%clk 0:02:52]} 9. Bb2 {[%clk 0:02:48]}  O-O {[%clk 0:02:30]} 10. O-O {[%clk 0:02:47]}  Qe7 {[%clk 0:02:23]} 11. Rad1 {[%clk 0:02:17]}  Rac8 {[%clk 0:02:06]} 12. Rfe1 {[%clk 0:02:15]}  Rfd8 {[%clk 0:01:48]} 13. Qb1 {[%clk 0:01:59]}  h6 {[%clk 0:01:41]} 14. h3 {[%clk 0:01:38]}  Bb4 {[%clk 0:01:01]} 15. Re2 {[%clk 0:01:26]}  dxc4 {[%clk 0:00:52]} 16. Bxc4 {[%clk 0:01:11]}  c5 {[%clk 0:00:50]} 17. Ne5 {[%clk 0:00:38]}  cxd4 {[%clk 0:00:45]} 18. exd4 {[%clk 0:00:34]}  Bxc3 {[%clk 0:00:39]} 19. Bxc3 {[%clk 0:00:32]}  b5 {[%clk 0:00:24]} 20. Ba5 {[%clk 0:00:15]}  bxc4 {[%clk 0:00:23]} 21. Bxd8 {[%clk 0:00:16]}  Qxd8 {[%clk 0:00:18]} 22. bxc4 {[%clk 0:00:16]}  Ba8 {[%clk 0:00:15]} 23. d5 {[%clk 0:00:13]}  Nxe5 {[%clk 0:00:13]} 24. Rxe5 {[%clk 0:00:13]}  exd5 {[%clk 0:00:13]} 25. cxd5 {[%clk 0:00:12]}  Qd6 {[%clk 0:00:12]} 26. Qf5 {[%clk 0:00:12]}  Rd8 {[%clk 0:00:12]} 27. Rde1 {[%clk 0:00:12]}  Bxd5 {[%clk 0:00:11]} 28. Re7 {[%clk 0:00:11]}  Be6 {[%clk 0:00:10]} 29. R7xe6 {[%clk 0:00:11]}  fxe6 {[%clk 0:00:10]} 30. Rxe6 {[%clk 0:00:12]}  Qd1+ {[%clk 0:00:09]} 31. Kh2 {[%clk 0:00:12]}  Qd7 {[%clk 0:00:09]} 32. Qe5 {[%clk 0:00:11]}  Qf7 {[%clk 0:00:09]} 33. Re7 {[%clk 0:00:11]}  Qg6 {[%clk 0:00:08]} 34. Rxa7 {[%clk 0:00:09]}  Kh7 {[%clk 0:00:08]} 35. Re7 {[%clk 0:00:08]}  Rd2 {[%clk 0:00:07]} 36. Qg3 {[%clk 0:00:08]}  Qxg3+ {[%clk 0:00:06]} 37. Kxg3 {[%clk 0:00:08]}  Rxa2 {[%clk 0:00:07]} 38. f3 {[%clk 0:00:07]}  Ra5 {[%clk 0:00:07]} 39. Kf2 {[%clk 0:00:06]}  Kg6 {[%clk 0:00:07]} 40. Re2 {[%clk 0:00:06]}  Ra4 {[%clk 0:00:07]} 41. g4 {[%clk 0:00:06]}  Nd5 {[%clk 0:00:08]} 42. Kg3 {[%clk 0:00:06]}  Nf4 {[%clk 0:00:07]} 43. Re5 {[%clk 0:00:05]}  Nd3 {[%clk 0:00:06]} 44. Re6+ {[%clk 0:00:04]}  Kf7 {[%clk 0:00:05]} 45. Rd6 {[%clk 0:00:05]}  Ne5 {[%clk 0:00:05]} 46. f4 {[%clk 0:00:03]}  Ng6 {[%clk 0:00:05]} 47. f5 {[%clk 0:00:03]}  Ne5 {[%clk 0:00:05]} 48. Re6 {[%clk 0:00:01]}  Nd7 {[%clk 0:00:03]} 49. Kg2 {[%clk 0:00:01]}  Nf6 {[%clk 0:00:04]} 50. Rc6 {[%clk 0:00:01]}  Ra3 {[%clk 0:00:04]} 51. Kh2 {[%clk 0:00:01]}  Nd5 {[%clk 0:00:04]} 52. Rd6 {[%clk 0:00:01]}  Nf4 {[%clk 0:00:05]} 53. h4 {[%clk 0:00:02]}  Rh3+ {[%clk 0:00:05]} 54. Kg1 {[%clk 0:00:02]}  Rxh4 {[%clk 0:00:05]} 55. Rd4 {[%clk 0:00:02]}  Rxg4+ {[%clk 0:00:06]} 56. Kh2 {[%clk 0:00:03]}  Kf6 {[%clk 0:00:04]} 57. Rd6+ {[%clk 0:00:02]}  Kxf5 {[%clk 0:00:05]} 58. Rd7 {[%clk 0:00:02]}  Rg2+ {[%clk 0:00:04]} 59. Kh1 {[%clk 0:00:02]}  Rg6 {[%clk 0:00:05]} 60. Rf7+ {[%clk 0:00:02]}  Rf6 {[%clk 0:00:05]} 61. Rxg7 {[%clk 0:00:03]}  h5 {[%clk 0:00:05]} 62. Rh7 {[%clk 0:00:03]}  Kg4 {[%clk 0:00:05]} 63. Rg7+ {[%clk 0:00:03]}  Kh3 {[%clk 0:00:05]} 64. Rh7 {[%clk 0:00:03]}  h4 {[%clk 0:00:05]} 65. Ra7 {[%clk 0:00:03]}  Rg6 {[%clk 0:00:04]} 66. Ra3+ {[%clk 0:00:03]}  Rg3 {[%clk 0:00:04]} 67. Ra2 {[%clk 0:00:03]}  Rf3 {[%clk 0:00:04]} 68. Rh2+ {[%clk 0:00:03]}  Kg3 {[%clk 0:00:04]} 69. Kg1 {[%clk 0:00:01]}  Rf1+ {[%clk 0:00:05]} 70. Kxf1 {[%clk 0:00:01]}  Kxh2 {[%clk 0:00:05]} 71. Kf2 {[%clk 0:00:02]}  h3 {[%clk 0:00:06]} 72. Kf1 {[%clk 0:00:02]}  Ng6 {[%clk 0:00:07]} 73. Kf2 {[%clk 0:00:02]}  Ne5 {[%clk 0:00:07]} 74. Kf1 {[%clk 0:00:03]}  Ng4 {[%clk 0:00:08]} 0-1


[Site "https://www.chess.com"]

[Event "Titled Tuesday Blitz April 26 Late 2022"]
[White "Pichot, Alan"]
[Black "Pesotskiy, Mikhail"]
[WhiteFideId "110973"]
[BlackFideId "34164453"]
[WhiteElo "2579"]
[BlackElo "2010"]
[Result "1/2-1/2"]
[Round "04"]
[TimeControl "180+1"]
[Date "2022.04.26"]
[WhiteClock "0:00:13"]
[BlackClock "0:00:18"]

1. e4 {[%clk 0:03:00]}  e6 {[%clk 0:03:00]} 2. d4 {[%clk 0:02:57]}  d5 {[%clk 0:03:00]} 3. Nd2 {[%clk 0:02:57]}  Nf6 {[%clk 0:03:00]} 4. e5 {[%clk 0:02:56]}  Nfd7 {[%clk 0:03:01]} 5. Bd3 {[%clk 0:02:57]}  c5 {[%clk 0:03:01]} 6. c3 {[%clk 0:02:57]}  Nc6 {[%clk 0:03:02]} 7. Ne2 {[%clk 0:02:58]}  cxd4 {[%clk 0:03:02]} 8. cxd4 {[%clk 0:02:59]}  f6 {[%clk 0:03:03]} 9. exf6 {[%clk 0:02:59]}  Qxf6 {[%clk 0:03:04]} 10. Nf3 {[%clk 0:03:00]}  h6 {[%clk 0:03:05]} 11. O-O {[%clk 0:02:54]}  Bd6 {[%clk 0:03:05]} 12. Ng3 {[%clk 0:02:44]}  O-O {[%clk 0:03:06]} 13. Be3 {[%clk 0:02:29]}  Rd8 {[%clk 0:03:06]} 14. Re1 {[%clk 0:02:25]}  Nf8 {[%clk 0:03:05]} 15. a3 {[%clk 0:02:24]}  Bd7 {[%clk 0:03:05]} 16. b4 {[%clk 0:02:23]}  a6 {[%clk 0:03:06]} 17. Rc1 {[%clk 0:02:22]}  Be8 {[%clk 0:03:06]} 18. Qc2 {[%clk 0:02:18]}  Bg6 {[%clk 0:03:06]} 19. Qb1 {[%clk 0:02:08]}  Rac8 {[%clk 0:02:50]} 20. Re2 {[%clk 0:01:40]}  Bxd3 {[%clk 0:02:47]} 21. Qxd3 {[%clk 0:01:40]}  Ng6 {[%clk 0:02:48]} 22. Rec2 {[%clk 0:01:38]}  Nf4 {[%clk 0:02:41]} 23. Qb3 {[%clk 0:01:36]}  Rf8 {[%clk 0:02:37]} 24. Bxf4 {[%clk 0:01:03]}  Qxf4 {[%clk 0:02:26]} 25. Qe3 {[%clk 0:00:58]}  Qxe3 {[%clk 0:02:21]} 26. fxe3 {[%clk 0:00:59]}  Ne7 {[%clk 0:02:21]} 27. Ne2 {[%clk 0:00:45]}  Rxc2 {[%clk 0:02:21]} 28. Rxc2 {[%clk 0:00:46]}  Rc8 {[%clk 0:02:21]} 29. Rxc8+ {[%clk 0:00:43]}  Nxc8 {[%clk 0:02:22]} 30. Kf2 {[%clk 0:00:42]}  Nb6 {[%clk 0:02:18]} 31. Nd2 {[%clk 0:00:42]}  Kf7 {[%clk 0:02:14]} 32. Kf3 {[%clk 0:00:42]}  Nc4 {[%clk 0:02:04]} 33. Nxc4 {[%clk 0:00:37]}  dxc4 {[%clk 0:02:05]} 34. e4 {[%clk 0:00:38]}  a5 {[%clk 0:01:54]} 35. e5 {[%clk 0:00:22]}  Be7 {[%clk 0:01:43]} 36. bxa5 {[%clk 0:00:21]}  Bxa3 {[%clk 0:01:44]} 37. Ke4 {[%clk 0:00:21]}  Bb4 {[%clk 0:01:15]} 38. d5 {[%clk 0:00:20]}  Bxa5 {[%clk 0:01:11]} 39. d6 {[%clk 0:00:17]}  b5 {[%clk 0:00:53]} 40. Kd4 {[%clk 0:00:09]}  Bb6+ {[%clk 0:00:51]} 41. Kc3 {[%clk 0:00:09]}  Bc5 {[%clk 0:00:49]} 42. Nd4 {[%clk 0:00:09]}  Bxd4+ {[%clk 0:00:14]} 43. Kxd4 {[%clk 0:00:10]}  Ke8 {[%clk 0:00:14]} 44. Kc3 {[%clk 0:00:11]}  Kd7 {[%clk 0:00:14]} 45. Kb4 {[%clk 0:00:11]}  Kc6 {[%clk 0:00:15]} 46. Kc3 {[%clk 0:00:11]}  Kd7 {[%clk 0:00:15]} 47. g4 {[%clk 0:00:11]}  Kc6 {[%clk 0:00:16]} 48. h4 {[%clk 0:00:11]}  g5 {[%clk 0:00:16]} 49. h5 {[%clk 0:00:10]}  Kd7 {[%clk 0:00:16]} 50. Kd4 {[%clk 0:00:11]}  Kc6 {[%clk 0:00:17]} 51. Kc3 {[%clk 0:00:12]}  Kd7 {[%clk 0:00:17]} 52. Kb4 {[%clk 0:00:12]}  Kc6 {[%clk 0:00:18]} 53. Kc3 {[%clk 0:00:13]} 1/2-1/2


[Site "https://www.chess.com"]

[Event "Titled Tuesday Blitz April 26 Late 2022"]
[White "Piekarski, Atila Balzer"]
[Black "Ouellet, Maili-Jade"]
[WhiteFideId "2119552"]
[BlackFideId "2620472"]
[WhiteElo "2050"]
[BlackElo "1899"]
[Result "0-1"]
[Round "04"]
[TimeControl "180+1"]
[Date "2022.04.26"]
[WhiteClock "0:00:02"]
[BlackClock "0:00:11"]

1. d4 {[%clk 0:03:00]}  d5 {[%clk 0:02:59]} 2. Bg5 {[%clk 0:03:00]}  h6 {[%clk 0:02:59]} 3. Bh4 {[%clk 0:02:59]}  c6 {[%clk 0:02:59]} 4. Nc3 {[%clk 0:02:58]}  Nd7 {[%clk 0:02:59]} 5. e4 {[%clk 0:02:53]}  dxe4 {[%clk 0:02:58]} 6. Nxe4 {[%clk 0:02:52]}  Ngf6 {[%clk 0:02:48]} 7. Nxf6+ {[%clk 0:02:42]}  Nxf6 {[%clk 0:02:42]} 8. Bc4 {[%clk 0:02:23]}  Bf5 {[%clk 0:02:36]} 9. Nf3 {[%clk 0:02:22]}  e6 {[%clk 0:02:35]} 10. O-O {[%clk 0:02:19]}  Be7 {[%clk 0:02:35]} 11. c3 {[%clk 0:02:15]}  O-O {[%clk 0:02:34]} 12. h3 {[%clk 0:02:14]}  Rc8 {[%clk 0:02:21]} 13. Ne5 {[%clk 0:02:03]}  Nd5 {[%clk 0:02:13]} 14. Bxe7 {[%clk 0:02:02]}  Qxe7 {[%clk 0:02:13]} 15. Qb3 {[%clk 0:02:00]}  Rc7 {[%clk 0:01:48]} 16. Rae1 {[%clk 0:01:58]}  Qg5 {[%clk 0:01:44]} 17. Bxd5 {[%clk 0:01:35]}  cxd5 {[%clk 0:01:39]} 18. f4 {[%clk 0:01:35]}  Qg3 {[%clk 0:01:31]} 19. Kh1 {[%clk 0:01:25]}  Be4 {[%clk 0:01:13]} 20. Re2 {[%clk 0:01:03]}  Qxh3+ {[%clk 0:01:10]} 21. Kg1 {[%clk 0:01:02]}  Qg3 {[%clk 0:01:09]} 22. Qd1 {[%clk 0:00:56]}  f6 {[%clk 0:01:04]} 23. Nf3 {[%clk 0:00:52]}  g5 {[%clk 0:00:55]} 24. Qe1 {[%clk 0:00:17]}  Qg4 {[%clk 0:00:34]} 25. Nd2 {[%clk 0:00:13]}  Bd3 {[%clk 0:00:30]} 26. Rxe6 {[%clk 0:00:09]}  Bxf1 {[%clk 0:00:29]} 27. Nxf1 {[%clk 0:00:10]}  Qxf4 {[%clk 0:00:27]} 28. Qe2 {[%clk 0:00:08]}  Qf5 {[%clk 0:00:22]} 29. Re3 {[%clk 0:00:07]}  Rh7 {[%clk 0:00:20]} 30. Ng3 {[%clk 0:00:07]}  Qd7 {[%clk 0:00:19]} 31. Nh5 {[%clk 0:00:07]}  f5 {[%clk 0:00:17]} 32. Qd3 {[%clk 0:00:06]}  Rhf7 {[%clk 0:00:15]} 33. Re5 {[%clk 0:00:06]}  Re8 {[%clk 0:00:13]} 34. Ng3 {[%clk 0:00:03]}  Rxe5 {[%clk 0:00:12]} 35. dxe5 {[%clk 0:00:03]}  Qe6 {[%clk 0:00:13]} 36. Qd4 {[%clk 0:00:03]}  Re7 {[%clk 0:00:13]} 37. Nh5 {[%clk 0:00:02]}  Qxe5 {[%clk 0:00:12]} 38. Nf6+ {[%clk 0:00:02]}  Kf7 {[%clk 0:00:11]} 0-1


[Site "https://www.chess.com"]

[Event "Titled Tuesday Blitz April 26 Late 2022"]
[White "Proudian, Armen"]
[Black "Chuemsakul, Sarocha"]
[WhiteFideId "2130734"]
[BlackFideId "6203710"]
[WhiteElo "2380"]
[BlackElo "1703"]
[Result "0-1"]
[Round "04"]
[TimeControl "180+1"]
[Date "2022.04.26"]
[WhiteClock "0:00:16"]
[BlackClock "0:00:13"]

1. e4 {[%clk 0:03:00]}  g6 {[%clk 0:03:00]} 2. d4 {[%clk 0:02:55]}  Bg7 {[%clk 0:02:58]} 3. Nc3 {[%clk 0:02:55]}  a6 {[%clk 0:02:57]} 4. Be3 {[%clk 0:02:55]}  b5 {[%clk 0:02:57]} 5. Nf3 {[%clk 0:02:46]}  d6 {[%clk 0:02:57]} 6. a4 {[%clk 0:02:38]}  b4 {[%clk 0:02:57]} 7. Na2 {[%clk 0:02:38]}  a5 {[%clk 0:02:58]} 8. c3 {[%clk 0:02:38]}  bxc3 {[%clk 0:02:58]} 9. Nxc3 {[%clk 0:02:37]}  Nd7 {[%clk 0:02:59]} 10. Bb5 {[%clk 0:02:36]}  Bb7 {[%clk 0:02:54]} 11. h4 {[%clk 0:02:31]}  h5 {[%clk 0:02:54]} 12. Ng5 {[%clk 0:02:30]}  Nf6 {[%clk 0:02:54]} 13. f3 {[%clk 0:02:26]}  O-O {[%clk 0:02:53]} 14. Rc1 {[%clk 0:02:20]}  c6 {[%clk 0:02:51]} 15. Be2 {[%clk 0:02:16]}  Ba6 {[%clk 0:02:45]} 16. g4 {[%clk 0:01:47]}  Bxe2 {[%clk 0:02:42]} 17. Qxe2 {[%clk 0:01:46]}  Rb8 {[%clk 0:02:41]} 18. gxh5 {[%clk 0:01:44]}  Nxh5 {[%clk 0:02:40]} 19. Rg1 {[%clk 0:01:41]}  Qb6 {[%clk 0:02:28]} 20. d5 {[%clk 0:01:29]}  Qxb2 {[%clk 0:01:52]} 21. Qxb2 {[%clk 0:01:28]}  Rxb2 {[%clk 0:01:53]} 22. dxc6 {[%clk 0:01:29]}  Ne5 {[%clk 0:01:53]} 23. Nd5 {[%clk 0:01:09]}  Nd3+ {[%clk 0:01:28]} 24. Kd1 {[%clk 0:01:09]}  Nxc1 {[%clk 0:01:16]} 25. Bxc1 {[%clk 0:00:44]}  Rb3 {[%clk 0:00:32]} 26. Nxe7+ {[%clk 0:00:44]}  Kh8 {[%clk 0:00:32]} 27. c7 {[%clk 0:00:39]}  Rc3 {[%clk 0:00:31]} 28. c8=Q {[%clk 0:00:37]}  Rcxc8 {[%clk 0:00:30]} 29. Nxc8 {[%clk 0:00:37]}  Rxc8 {[%clk 0:00:30]} 30. Nxf7+ {[%clk 0:00:36]}  Kg8 {[%clk 0:00:30]} 31. Nxd6 {[%clk 0:00:15]}  Rd8 {[%clk 0:00:30]} 32. Rxg6 {[%clk 0:00:16]}  Kh7 {[%clk 0:00:26]} 33. Re6 {[%clk 0:00:16]}  Bf8 {[%clk 0:00:26]} 34. e5 {[%clk 0:00:15]}  Ng7 {[%clk 0:00:22]} 35. Rf6 {[%clk 0:00:15]}  Nh5 {[%clk 0:00:20]} 36. Rf7+ {[%clk 0:00:14]}  Kg8 {[%clk 0:00:19]} 37. Rf5 {[%clk 0:00:10]}  Bxd6 {[%clk 0:00:17]} 38. exd6 {[%clk 0:00:11]}  Rxd6+ {[%clk 0:00:16]} 39. Kc2 {[%clk 0:00:11]}  Nf6 {[%clk 0:00:11]} 40. Rxa5 {[%clk 0:00:10]}  Rd4 {[%clk 0:00:12]} 41. Bg5 {[%clk 0:00:10]}  Nd5 {[%clk 0:00:11]} 42. Ra8+ {[%clk 0:00:09]}  Kf7 {[%clk 0:00:11]} 43. a5 {[%clk 0:00:09]}  Ra4 {[%clk 0:00:10]} 44. Kb3 {[%clk 0:00:08]}  Rb4+ {[%clk 0:00:07]} 45. Ka3 {[%clk 0:00:08]}  Rb1 {[%clk 0:00:08]} 46. Ra7+ {[%clk 0:00:05]}  Kg6 {[%clk 0:00:07]} 47. Bd2 {[%clk 0:00:04]}  Rd1 {[%clk 0:00:05]} 48. Bb4 {[%clk 0:00:04]}  Ra1+ {[%clk 0:00:04]} 49. Kb3 {[%clk 0:00:04]}  Rb1+ {[%clk 0:00:05]} 50. Kc4 {[%clk 0:00:04]}  Nxb4 {[%clk 0:00:01]} 51. Ra6+ {[%clk 0:00:05]}  Nxa6 {[%clk 0:00:01]} 52. f4 {[%clk 0:00:05]}  Kf5 {[%clk 0:00:01]} 53. h5 {[%clk 0:00:06]}  Kxf4 {[%clk 0:00:02]} 54. h6 {[%clk 0:00:06]}  Rh1 {[%clk 0:00:02]} 55. Kb5 {[%clk 0:00:07]}  Rxh6 {[%clk 0:00:03]} 56. Kc4 {[%clk 0:00:07]}  Ke5 {[%clk 0:00:04]} 57. Kb5 {[%clk 0:00:08]}  Rf6 {[%clk 0:00:04]} 58. Kc4 {[%clk 0:00:09]}  Kd6 {[%clk 0:00:04]} 59. Kb5 {[%clk 0:00:10]}  Kc7 {[%clk 0:00:05]} 60. Kc4 {[%clk 0:00:10]}  Rc6+ {[%clk 0:00:05]} 61. Kb5 {[%clk 0:00:11]}  Kb7 {[%clk 0:00:06]} 62. Ka4 {[%clk 0:00:11]}  Rc5 {[%clk 0:00:07]} 63. Kb3 {[%clk 0:00:11]}  Kc6 {[%clk 0:00:08]} 64. Ka4 {[%clk 0:00:11]}  Rc4+ {[%clk 0:00:08]} 65. Kb3 {[%clk 0:00:12]}  Kb5 {[%clk 0:00:09]} 66. Ka3 {[%clk 0:00:12]}  Ra4+ {[%clk 0:00:09]} 67. Kb3 {[%clk 0:00:12]}  Rxa5 {[%clk 0:00:10]} 68. Kb2 {[%clk 0:00:13]}  Ra4 {[%clk 0:00:11]} 69. Kb1 {[%clk 0:00:14]}  Kc4 {[%clk 0:00:12]} 70. Kb2 {[%clk 0:00:14]}  Nb4 {[%clk 0:00:12]} 71. Kb1 {[%clk 0:00:15]}  Kc3 {[%clk 0:00:12]} 72. Kc1 {[%clk 0:00:16]}  Ra1# {[%clk 0:00:13]} 0-1


[Site "https://www.chess.com"]

[Event "Titled Tuesday Blitz April 26 Late 2022"]
[White "Qiao, Cindy"]
[Black "Remolar Gallen, Jose"]
[WhiteFideId "2620243"]
[BlackFideId "2215187"]
[WhiteElo "2242"]
[BlackElo "2205"]
[Result "1/2-1/2"]
[Round "04"]
[TimeControl "180+1"]
[Date "2022.04.26"]
[WhiteClock "0:00:21"]
[BlackClock "0:00:04"]

1. d4 {[%clk 0:03:00]}  d5 {[%clk 0:02:57]} 2. Bf4 {[%clk 0:03:00]}  Nf6 {[%clk 0:02:56]} 3. e3 {[%clk 0:03:01]}  e6 {[%clk 0:02:56]} 4. Nf3 {[%clk 0:03:01]}  Bd6 {[%clk 0:02:57]} 5. Bg3 {[%clk 0:03:00]}  O-O {[%clk 0:02:57]} 6. Bd3 {[%clk 0:03:00]}  c5 {[%clk 0:02:57]} 7. c3 {[%clk 0:03:00]}  Qc7 {[%clk 0:02:57]} 8. dxc5 {[%clk 0:02:47]}  Qxc5 {[%clk 0:02:55]} 9. Nbd2 {[%clk 0:02:36]}  Qc7 {[%clk 0:02:40]} 10. e4 {[%clk 0:02:32]}  e5 {[%clk 0:02:23]} 11. O-O {[%clk 0:02:24]}  Nc6 {[%clk 0:02:19]} 12. Bh4 {[%clk 0:02:12]}  Nxe4 {[%clk 0:02:13]} 13. Nxe4 {[%clk 0:02:08]}  dxe4 {[%clk 0:02:13]} 14. Bxe4 {[%clk 0:02:09]}  f5 {[%clk 0:02:05]} 15. Bd5+ {[%clk 0:02:08]}  Kh8 {[%clk 0:02:02]} 16. Ng5 {[%clk 0:01:50]}  g6 {[%clk 0:01:28]} 17. Re1 {[%clk 0:00:59]}  e4 {[%clk 0:01:17]} 18. Nf7+ {[%clk 0:00:32]}  Kg7 {[%clk 0:00:56]} 19. Nxd6 {[%clk 0:00:31]}  Qxd6 {[%clk 0:00:54]} 20. Bxc6 {[%clk 0:00:23]}  Qxd1 {[%clk 0:00:52]} 21. Raxd1 {[%clk 0:00:22]}  bxc6 {[%clk 0:00:53]} 22. Be7 {[%clk 0:00:22]}  Rf7 {[%clk 0:00:50]} 23. Bc5 {[%clk 0:00:22]}  Be6 {[%clk 0:00:48]} 24. b3 {[%clk 0:00:20]}  a5 {[%clk 0:00:42]} 25. Rd6 {[%clk 0:00:20]}  Bd7 {[%clk 0:00:27]} 26. Red1 {[%clk 0:00:20]}  Be8 {[%clk 0:00:26]} 27. Bd4+ {[%clk 0:00:20]}  Kg8 {[%clk 0:00:25]} 28. Be5 {[%clk 0:00:20]}  a4 {[%clk 0:00:24]} 29. c4 {[%clk 0:00:20]}  axb3 {[%clk 0:00:24]} 30. axb3 {[%clk 0:00:21]}  Kf8 {[%clk 0:00:18]} 31. g3 {[%clk 0:00:21]}  Rb8 {[%clk 0:00:16]} 32. Rb1 {[%clk 0:00:20]}  Re7 {[%clk 0:00:15]} 33. Bf4 {[%clk 0:00:20]}  Rc8 {[%clk 0:00:15]} 34. Rf6+ {[%clk 0:00:20]}  Kg7 {[%clk 0:00:15]} 35. Rd6 {[%clk 0:00:21]}  Rd7 {[%clk 0:00:15]} 36. Rxd7+ {[%clk 0:00:21]}  Bxd7 {[%clk 0:00:16]} 37. Rd1 {[%clk 0:00:21]}  Be6 {[%clk 0:00:16]} 38. Rd6 {[%clk 0:00:22]}  Kf7 {[%clk 0:00:17]} 39. h3 {[%clk 0:00:22]}  Ke7 {[%clk 0:00:16]} 40. c5 {[%clk 0:00:22]}  Kf7 {[%clk 0:00:10]} 41. b4 {[%clk 0:00:21]}  Bd5 {[%clk 0:00:10]} 42. Be5 {[%clk 0:00:21]}  Re8 {[%clk 0:00:09]} 43. Bf4 {[%clk 0:00:21]}  Re6 {[%clk 0:00:09]} 44. Rd7+ {[%clk 0:00:21]}  Re7 {[%clk 0:00:10]} 45. Rd6 {[%clk 0:00:22]}  Rb7 {[%clk 0:00:10]} 46. g4 {[%clk 0:00:18]}  fxg4 {[%clk 0:00:10]} 47. hxg4 {[%clk 0:00:18]}  Rxb4 {[%clk 0:00:11]} 48. Be3 {[%clk 0:00:17]}  Rb7 {[%clk 0:00:09]} 49. Kg2 {[%clk 0:00:17]}  Ke7 {[%clk 0:00:10]} 50. Kg3 {[%clk 0:00:16]}  Rd7 {[%clk 0:00:10]} 51. Rxd7+ {[%clk 0:00:17]}  Kxd7 {[%clk 0:00:10]} 52. Kf4 {[%clk 0:00:18]}  Ke6 {[%clk 0:00:11]} 53. Kg5 {[%clk 0:00:18]}  Kf7 {[%clk 0:00:11]} 54. Kh6 {[%clk 0:00:19]}  Kg8 {[%clk 0:00:12]} 55. Bd4 {[%clk 0:00:19]}  Be6 {[%clk 0:00:12]} 56. g5 {[%clk 0:00:19]}  Bg4 {[%clk 0:00:12]} 57. Be3 {[%clk 0:00:18]}  Bf3 {[%clk 0:00:12]} 58. Bd4 {[%clk 0:00:19]}  Bh5 {[%clk 0:00:12]} 59. Be3 {[%clk 0:00:19]}  Kf7 {[%clk 0:00:10]} 60. Kxh7 {[%clk 0:00:19]}  Ke6 {[%clk 0:00:11]} 61. Kg7 {[%clk 0:00:19]}  Kd5 {[%clk 0:00:08]} 62. Kf6 {[%clk 0:00:19]}  Kc4 {[%clk 0:00:07]} 63. Ke5 {[%clk 0:00:19]}  Bf3 {[%clk 0:00:05]} 64. Kd6 {[%clk 0:00:19]}  Kb5 {[%clk 0:00:05]} 65. Ke5 {[%clk 0:00:20]}  Kc4 {[%clk 0:00:04]} 66. Kf6 {[%clk 0:00:20]}  Bh5 {[%clk 0:00:04]} 67. Ke5 {[%clk 0:00:21]}  Bf3 {[%clk 0:00:04]} 1/2-1/2


[Site "https://www.chess.com"]